[Event "NJSK 2026 Jeugd B"]
[Site "Helmond, Netherlands"]
[Date "2026.04.26"]
[Round "2.5"]
[White "Baarspul, Bram"]
[Black "Woldhuis, Marnik"]
[Result "1-0"]
[TimeControl "90min/40moves + 30min + 30sec/move"]
[WhiteTitle "-"]
[BlackTitle "-"]
[WhiteFideId "40106187"]
[BlackFideId "1087096"]
[WhiteElo "2177"]
[BlackElo "1939"]

1. e4 {[%clk 01:30:56]} {[%emt 00:00:04]} c5 {[%clk 01:30:57]} {[%emt
00:00:03]} 2. Nf3 {[%clk 01:31:22]} {[%emt 00:00:03]} d6 {[%clk 01:31:24]}
{[%emt 00:00:04]} 3. d4 {[%clk 01:31:50]} {[%emt 00:00:02]} cxd4 {[%clk
01:31:48]} {[%emt 00:00:06]} 4. Nxd4 {[%clk 01:32:18]} {[%emt 00:00:02]} Nf6
{[%clk 01:32:07]} {[%emt 00:00:11]} 5. Nc3 {[%clk 01:32:45]} {[%emt 00:00:03]}
a6 {[%clk 01:32:32]} {[%emt 00:00:06]} 6. Bd3 {[%clk 01:32:55]} {[%emt
00:00:17]} Nbd7 {[%clk 01:32:50]} {[%emt 00:00:13]} 7. O-O {[%clk 01:31:04]}
{[%emt 00:02:21]} g6 {[%clk 01:33:04]} {[%emt 00:00:17]} 8. Be3 {[%clk
01:24:44]} {[%emt 00:06:50]} Nc5 {[%clk 01:30:42]} {[%emt 00:02:52]} 9. h3
{[%clk 01:19:58]} {[%emt 00:05:16]} Bg7 {[%clk 01:29:13]} {[%emt 00:01:59]} 10.
a4 {[%clk 01:18:51]} {[%emt 00:01:37]} O-O {[%clk 01:20:55]} {[%emt 00:08:47]}
11. a5 {[%clk 01:15:57]} {[%emt 00:03:25]} b5 {[%clk 01:14:40]} {[%emt
00:06:45]} 12. axb6 {[%clk 01:07:41]} {[%emt 00:08:45]} Qxb6 {[%clk 01:15:00]}
{[%emt 00:00:11]} 13. e5 {[%clk 00:57:10]} {[%emt 00:11:01]} Ne8 {[%clk
01:00:10]} {[%emt 00:15:20]} 14. Nd5 {[%clk 00:52:11]} {[%emt 00:05:27]} Qb7
{[%clk 00:58:55]} {[%emt 00:01:45]} 15. Nc6 {[%clk 00:51:27]} {[%emt 00:01:14]}
e6 {[%clk 00:58:58]} {[%emt 00:00:28]} 16. Nde7+ {[%clk 00:50:11]} {[%emt
00:01:46]} Kh8 {[%clk 00:59:20]} {[%emt 00:00:08]} 17. exd6 {[%clk 00:50:03]}
{[%emt 00:00:39]} Nxd3 {[%clk 00:52:34]} {[%emt 00:07:15]} 18. Qxd3 {[%clk
00:48:01]} {[%emt 00:02:32]} Bd7 {[%clk 00:51:49]} {[%emt 00:01:15]} 19. Na5
{[%clk 00:41:19]} {[%emt 00:07:12]} Qb4 {[%clk 00:49:46]} {[%emt 00:02:32]} 20.
Rfd1 {[%clk 00:36:51]} {[%emt 00:04:59]} Qxb2 {[%clk 00:29:57]} {[%emt
00:20:20]} 21. c4 {[%clk 00:25:10]} {[%emt 00:12:11]} e5 {[%clk 00:19:46]}
{[%emt 00:10:41]} 22. Rdb1 {[%clk 00:17:40]} {[%emt 00:08:00]} e4 {[%clk
00:20:06]} {[%emt 00:00:10]} 23. Qd5 {[%clk 00:15:33]} {[%emt 00:02:36]} Qe5
{[%clk 00:10:23]} {[%emt 00:10:12]} 24. Qxa8 {[%clk 00:12:46]} {[%emt
00:03:18]} Nxd6 {[%clk 00:10:48]} {[%emt 00:00:05]} 25. Qxa6 {[%clk 00:10:07]}
{[%emt 00:03:09]} Qxe7 {[%clk 00:11:09]} {[%emt 00:00:08]} 26. Bc5 {[%clk
00:07:51]} {[%emt 00:02:47]} Bxa1 {[%clk 00:11:23]} {[%emt 00:00:17]} 27. Qxd6
{[%clk 00:07:39]} {[%emt 00:00:41]} Qxd6 {[%clk 00:11:02]} {[%emt 00:00:51]} 28.
Bxd6 {[%clk 00:08:07]} {[%emt 00:00:02]} Bg7 {[%clk 00:10:38]} {[%emt
00:00:54]} 29. Bxf8 {[%clk 00:08:26]} {[%emt 00:00:11]} Bxf8 {[%clk 00:11:05]}
{[%emt 00:00:03]} 30. Kf1 {[%clk 00:06:15]} {[%emt 00:02:40]} Kg7 {[%clk
00:10:10]} {[%emt 00:01:25]} 31. Ke2 {[%clk 00:06:30]} {[%emt 00:00:15]} Kf6
{[%clk 00:10:27]} {[%emt 00:00:13]} 32. Rb7 {[%clk 00:06:10]} {[%emt 00:00:51]}
Ke6 {[%clk 00:09:52]} {[%emt 00:01:06]} 33. Nb3 {[%clk 00:05:47]} {[%emt
00:00:52]} f5 {[%clk 00:07:50]} {[%emt 00:02:32]} 34. Nd4+ {[%clk 00:05:42]}
{[%emt 00:00:35]} Ke7 {[%clk 00:07:38]} {[%emt 00:00:42]} 35. c5 {[%clk
00:06:02]} {[%emt 00:00:09]} Bg7 {[%clk 00:06:46]} {[%emt 00:01:23]} 36. c6
{[%clk 00:06:25]} {[%emt 00:00:08]} 1-0

[Event "NJSK 2026 Jeugd B"]
[Site "Helmond, Netherlands"]
[Date "2026.04.26"]
[Round "2.6"]
[White "Darie, Aden"]
[Black "Hallibert, Emilien"]
[Result "1/2-1/2"]
[TimeControl "90min/40moves + 30min + 30sec/move"]
[WhiteTitle "-"]
[BlackTitle "-"]
[WhiteFideId "1094831"]
[BlackFideId "1092561"]
[WhiteElo "2150"]
[BlackElo "1975"]

1. b3 {[%clk 01:28:59]} {[%emt 00:02:00]} c5 {[%clk 01:29:30]} {[%emt
00:01:31]} 2. Bb2 {[%clk 01:29:23]} {[%emt 00:00:06]} Nc6 {[%clk 01:29:53]}
{[%emt 00:00:06]} 3. Nf3 {[%clk 01:29:46]} {[%emt 00:00:07]} Nf6 {[%clk
01:27:58]} {[%emt 00:02:25]} 4. e3 {[%clk 01:30:06]} {[%emt 00:00:11]} e6
{[%clk 01:26:44]} {[%emt 00:01:45]} 5. d4 {[%clk 01:27:30]} {[%emt 00:03:04]}
b6 {[%clk 01:23:17]} {[%emt 00:03:58]} 6. c4 {[%clk 01:25:06]} {[%emt
00:02:53]} cxd4 {[%clk 01:23:39]} {[%emt 00:00:08]} 7. Nxd4 {[%clk 01:25:27]}
{[%emt 00:00:09]} Bb7 {[%clk 01:22:46]} {[%emt 00:01:23]} 8. Nc3 {[%clk
01:25:03]} {[%emt 00:00:53]} Be7 {[%clk 01:19:07]} {[%emt 00:04:10]} 9. Be2
{[%clk 01:21:55]} {[%emt 00:03:39]} O-O {[%clk 01:09:57]} {[%emt 00:09:39]} 10.
Qd2 {[%clk 01:19:29]} {[%emt 00:02:56]} d5 {[%clk 01:06:33]} {[%emt 00:03:55]}
11. cxd5 {[%clk 01:17:04]} {[%emt 00:02:54]} Nxd5 {[%clk 01:06:29]} {[%emt
00:00:34]} 12. Nxd5 {[%clk 01:17:10]} {[%emt 00:00:24]} exd5 {[%clk 01:02:55]}
{[%emt 00:04:04]} 13. O-O {[%clk 01:16:15]} {[%emt 00:01:25]} Qd7 {[%clk
00:53:21]} {[%emt 00:10:04]} 14. Rac1 {[%clk 01:08:10]} {[%emt 00:08:36]} Rac8
{[%clk 00:48:28]} {[%emt 00:05:23]} 15. Rfd1 {[%clk 00:59:36]} {[%emt
00:09:03]} Bd6 {[%clk 00:44:24]} {[%emt 00:04:33]} 16. Bb5 {[%clk 00:56:43]}
{[%emt 00:03:24]} Rfd8 {[%clk 00:40:01]} {[%emt 00:04:53]} 17. Nxc6 {[%clk
00:56:38]} {[%emt 00:00:35]} Bxc6 {[%clk 00:40:21]} {[%emt 00:00:10]} 18. Qc3
{[%clk 00:57:03]} {[%emt 00:00:05]} d4 {[%clk 00:36:57]} {[%emt 00:03:54]} 19.
Bxc6 {[%clk 00:43:20]} {[%emt 00:14:14]} dxc3 {[%clk 00:34:21]} {[%emt
00:03:05]} 20. Bxd7 {[%clk 00:43:43]} {[%emt 00:00:08]} Rxd7 {[%clk 00:33:12]}
{[%emt 00:01:38]} 21. Bxc3 {[%clk 00:44:06]} {[%emt 00:00:07]} Rcd8 {[%clk
00:29:23]} {[%emt 00:04:19]} 22. Be5 {[%clk 00:41:40]} {[%emt 00:02:56]} g6
{[%clk 00:22:51]} {[%emt 00:07:02]} 23. Rxd6 {[%clk 00:41:21]} {[%emt
00:00:50]} Rxd6 {[%clk 00:23:05]} {[%emt 00:00:16]} 24. Bxd6 {[%clk 00:41:47]}
{[%emt 00:00:03]} Rxd6 {[%clk 00:23:34]} {[%emt 00:00:02]} 25. g4 {[%clk
00:42:04]} {[%emt 00:00:13]} Rd2 {[%clk 00:23:52]} {[%emt 00:00:11]} 26. a4
{[%clk 00:37:43]} {[%emt 00:04:52]} Rb2 {[%clk 00:22:29]} {[%emt 00:01:53]} 27.
Rc3 {[%clk 00:38:03]} {[%emt 00:00:10]} g5 {[%clk 00:21:12]} {[%emt 00:01:47]}
28. Kg2 {[%clk 00:38:07]} {[%emt 00:00:26]} Kg7 {[%clk 00:21:36]} {[%emt
00:00:06]} 29. Kg3 {[%clk 00:36:59]} {[%emt 00:01:38]} a6 {[%clk 00:17:54]}
{[%emt 00:04:12]} 30. f3 {[%clk 00:35:20]} {[%emt 00:02:08]} b5 {[%clk
00:17:20]} {[%emt 00:01:05]} 31. axb5 {[%clk 00:34:44]} {[%emt 00:01:06]} axb5
{[%clk 00:17:43]} {[%emt 00:00:06]} 32. Rc5 {[%clk 00:34:59]} {[%emt 00:00:15]}
Rxb3 {[%clk 00:18:05]} {[%emt 00:00:08]} 33. Rxg5+ {[%clk 00:35:24]} {[%emt
00:00:05]} Kf6 {[%clk 00:18:23]} {[%emt 00:00:12]} 34. Rh5 {[%clk 00:34:58]}
{[%emt 00:00:57]} Kg6 {[%clk 00:15:46]} {[%emt 00:03:07]} 35. Kf4 {[%clk
00:34:36]} {[%emt 00:00:51]} b4 {[%clk 00:15:35]} {[%emt 00:00:42]} 36. Rg5+
{[%clk 00:35:02]} {[%emt 00:00:04]} Kf6 {[%clk 00:15:50]} {[%emt 00:00:15]} 37.
Rf5+ {[%clk 00:35:28]} {[%emt 00:00:04]} Kg6 {[%clk 00:13:24]} {[%emt
00:02:56]} 38. h4 {[%clk 00:35:47]} {[%emt 00:00:11]} Rb1 {[%clk 00:13:32]}
{[%emt 00:00:22]} 39. h5+ {[%clk 00:36:11]} {[%emt 00:00:05]} Kg7 {[%clk
00:13:49]} {[%emt 00:00:14]} 40. g5 {[%clk 00:34:27]} {[%emt 00:02:14]} b3
{[%clk 00:12:34]} {[%emt 00:01:45]} 41. Rb5 {[%clk 00:34:07]} {[%emt 00:00:49]}
b2 {[%clk 00:12:00]} {[%emt 00:01:05]} 42. Rb7 {[%clk 00:32:22]} {[%emt
00:02:15]} Kf8 {[%clk 00:11:16]} {[%emt 00:01:13]} 43. Ke4 {[%clk 00:30:08]}
{[%emt 00:02:45]} Rg1 {[%clk 00:10:22]} {[%emt 00:01:24]} 44. Rxb2 {[%clk
00:30:33]} {[%emt 00:00:06]} Rxg5 {[%clk 00:10:46]} {[%emt 00:00:04]} 45. Rh2
{[%clk 00:30:54]} {[%emt 00:00:09]} h6 {[%clk 00:11:04]} {[%emt 00:00:14]} 46.
f4 {[%clk 00:31:18]} {[%emt 00:00:05]} Ra5 {[%clk 00:06:10]} {[%emt 00:05:24]}
47. f5 {[%clk 00:31:28]} {[%emt 00:00:20]} Ra4+ {[%clk 00:06:17]} {[%emt
00:00:23]} 48. Ke5 {[%clk 00:31:41]} {[%emt 00:00:14]} Ke7 {[%clk 00:04:40]}
{[%emt 00:02:09]} 49. e4 {[%clk 00:29:50]} {[%emt 00:02:23]} Ra1 {[%clk
00:29:48]} {[%emt 00:05:22]} 50. Rb2 {[%clk 00:59:12]} {[%emt 00:01:07]} f6+
{[%clk 00:27:58]} {[%emt 00:02:21]} 51. Kf4 {[%clk 00:59:24]} {[%emt 00:00:17]}
Rf1+ {[%clk 00:28:19]} {[%emt 00:00:09]} 52. Kg3 {[%clk 00:59:12]} {[%emt
00:00:42]} Rh1 {[%clk 00:26:23]} {[%emt 00:02:27]} 53. Rh2 {[%clk 00:59:11]}
{[%emt 00:00:27]} Ra1 {[%clk 00:25:35]} {[%emt 00:01:23]} 54. Kf3 {[%clk
00:59:20]} {[%emt 00:00:20]} Ra3+ {[%clk 00:25:53]} {[%emt 00:00:12]} 55. Kf4
{[%clk 00:59:43]} {[%emt 00:00:06]} Ra1 {[%clk 00:26:17]} {[%emt 00:00:04]} 56.
Rg2 {[%clk 00:59:43]} {[%emt 00:00:32]} Rf1+ {[%clk 00:24:45]} {[%emt
00:02:02]} 57. Ke3 {[%clk 00:59:53]} {[%emt 00:00:21]} Re1+ {[%clk 00:21:49]}
{[%emt 00:03:26]} 58. Kf3 {[%clk 01:00:10]} {[%emt 00:00:12]} Rf1+ {[%clk
00:21:56]} {[%emt 00:00:24]} 59. Ke2 {[%clk 00:59:54]} {[%emt 00:00:46]} Rh1
{[%clk 00:22:14]} {[%emt 00:00:12]} 60. Rg7+ {[%clk 01:00:12]} {[%emt
00:00:11]} Kd6 {[%clk 00:22:29]} {[%emt 00:00:16]} 61. Ke3 {[%clk 01:00:33]}
{[%emt 00:00:09]} Re1+ {[%clk 00:22:01]} {[%emt 00:00:59]} 62. Kf3 {[%clk
01:00:47]} {[%emt 00:00:15]} Rf1+ {[%clk 00:22:25]} {[%emt 00:00:06]} 63. Ke2
{[%clk 01:00:49]} {[%emt 00:00:27]} Rh1 {[%clk 00:22:49]} {[%emt 00:00:06]} 64.
Ke3 {[%clk 01:00:31]} {[%emt 00:00:49]} Re1+ {[%clk 00:22:48]} {[%emt
00:00:31]} 65. Kf3 {[%clk 01:00:54]} {[%emt 00:00:06]} Rf1+ {[%clk 00:23:15]}
{[%emt 00:00:04]} 66. Kg2 {[%clk 01:00:23]} {[%emt 00:01:02]} Re1 {[%clk
00:22:49]} {[%emt 00:00:55]} 67. Rg6 {[%clk 00:58:20]} {[%emt 00:02:32]} Rxe4
{[%clk 00:22:46]} {[%emt 00:00:33]} 68. Kf3 {[%clk 00:58:16]} {[%emt 00:00:35]}
Rh4 {[%clk 00:22:14]} {[%emt 00:01:02]} 69. Rxf6+ {[%clk 00:58:16]} {[%emt
00:00:30]} Ke5 {[%clk 00:22:38]} {[%emt 00:00:06]} 70. Rxh6 {[%clk 00:58:19]}
{[%emt 00:00:27]} Kxf5 {[%clk 00:23:00]} {[%emt 00:00:08]} 71. Kg3 {[%clk
00:58:43]} {[%emt 00:00:06]} Kg5 {[%clk 00:22:57]} {[%emt 00:00:33]} 72. Rg6+
{[%clk 00:58:38]} {[%emt 00:00:35]} Kxh5 {[%clk 00:23:22]} {[%emt 00:00:05]} 73.
Rh6+ {[%clk 00:59:03]} {[%emt 00:00:05]} Kxh6 {[%clk 00:23:49]} {[%emt
00:00:03]} 74. Kxh4 {[%clk 00:59:28]} {[%emt 00:00:05]} 1/2-1/2

[Event "NJSK 2026 Jeugd B"]
[Site "Helmond, Netherlands"]
[Date "2026.04.26"]
[Round "2.7"]
[White "Roebers, Bregje"]
[Black "Grooten, Tommy"]
[Result "1/2-1/2"]
[TimeControl "90min/40moves + 30min + 30sec/move"]
[WhiteTitle "-"]
[BlackTitle "-"]
[WhiteFideId "1085174"]
[BlackFideId "1068806"]
[WhiteElo "1945"]
[BlackElo "2347"]

1. e4 {[%clk 01:30:55]} {[%emt 00:00:05]} c5 {[%clk 01:30:57]} {[%emt
00:00:03]} 2. Nf3 {[%clk 01:30:33]} {[%emt 00:00:52]} d6 {[%clk 01:31:15]}
{[%emt 00:00:12]} 3. Bb5+ {[%clk 01:28:50]} {[%emt 00:02:13]} Nc6 {[%clk
01:31:27]} {[%emt 00:00:17]} 4. a4 {[%clk 01:24:54]} {[%emt 00:04:26]} Bd7
{[%clk 01:30:16]} {[%emt 00:01:41]} 5. O-O {[%clk 01:22:56]} {[%emt 00:02:28]}
a6 {[%clk 01:27:14]} {[%emt 00:03:33]} 6. Be2 {[%clk 01:21:55]} {[%emt
00:01:31]} Nf6 {[%clk 01:25:12]} {[%emt 00:02:31]} 7. Nc3 {[%clk 01:16:39]}
{[%emt 00:05:47]} g6 {[%clk 01:24:24]} {[%emt 00:01:18]} 8. d3 {[%clk
01:09:30]} {[%emt 00:07:39]} Bg7 {[%clk 01:23:53]} {[%emt 00:01:00]} 9. Nd2
{[%clk 01:09:40]} {[%emt 00:00:20]} Rb8 {[%clk 01:22:03]} {[%emt 00:02:20]} 10.
f4 {[%clk 01:03:38]} {[%emt 00:06:32]} b5 {[%clk 01:21:10]} {[%emt 00:01:23]}
11. Nf3 {[%clk 00:52:17]} {[%emt 00:11:51]} Qb6 {[%clk 00:55:37]} {[%emt
00:26:03]} 12. Kh1 {[%clk 00:32:10]} {[%emt 00:20:36]} b4 {[%clk 00:36:48]}
{[%emt 00:19:18]} 13. Nb1 {[%clk 00:27:46]} {[%emt 00:04:54]} Ng4 {[%clk
00:36:53]} {[%emt 00:00:25]} 14. Nbd2 {[%clk 00:11:21]} {[%emt 00:16:54]} Ne3
{[%clk 00:35:10]} {[%emt 00:02:13]} 15. Nc4 {[%clk 00:11:47]} {[%emt 00:00:05]}
Nxd1 {[%clk 00:30:33]} {[%emt 00:05:07]} 16. Nxb6 {[%clk 00:12:12]} {[%emt
00:00:04]} Rxb6 {[%clk 00:30:48]} {[%emt 00:00:15]} 17. Bxd1 {[%clk 00:11:29]}
{[%emt 00:01:14]} b3 {[%clk 00:25:42]} {[%emt 00:05:36]} 18. cxb3 {[%clk
00:05:20]} {[%emt 00:06:39]} Bg4 {[%clk 00:20:33]} {[%emt 00:05:38]} 19. e5
{[%clk 00:01:27]} {[%emt 00:04:23]} O-O {[%clk 00:13:43]} {[%emt 00:07:20]} 20.
Be3 {[%clk 00:01:16]} {[%emt 00:00:42]} Rb4 {[%clk 00:09:19]} {[%emt 00:04:53]}
21. Bd2 {[%clk 00:00:59]} {[%emt 00:00:48]} Rbb8 {[%clk 00:09:20]} {[%emt
00:00:28]} 22. Bc3 {[%clk 00:00:49]} {[%emt 00:00:40]} d5 {[%clk 00:08:55]}
{[%emt 00:00:55]} 23. h3 {[%clk 00:00:52]} {[%emt 00:00:26]} Bxf3 {[%clk
00:08:46]} {[%emt 00:00:39]} 24. Bxf3 {[%clk 00:01:11]} {[%emt 00:00:11]} e6
{[%clk 00:09:15]} {[%emt 00:00:01]} 25. Bd1 {[%clk 00:00:59]} {[%emt 00:00:43]}
Rfc8 {[%clk 00:09:14]} {[%emt 00:00:31]} 26. Rc1 {[%clk 00:01:05]} {[%emt
00:00:23]} Bf8 {[%clk 00:07:30]} {[%emt 00:02:15]} 27. Kh2 {[%clk 00:01:00]}
{[%emt 00:00:35]} Nd4 {[%clk 00:05:06]} {[%emt 00:02:53]} 28. Bxd4 {[%clk
00:00:53]} {[%emt 00:00:37]} cxd4 {[%clk 00:05:35]} {[%emt 00:00:02]} 29. Rxc8
{[%clk 00:00:41]} {[%emt 00:00:42]} Rxc8 {[%clk 00:06:05]} 30. Rf2 {[%clk
00:00:45]} {[%emt 00:00:26]} Rc1 {[%clk 00:06:17]} {[%emt 00:00:18]} 31. Bf3
{[%clk 00:01:05]} {[%emt 00:00:10]} h5 {[%clk 00:06:06]} {[%emt 00:00:41]} 32.
g3 {[%clk 00:00:52]} {[%emt 00:00:42]} Bb4 {[%clk 00:05:39]} {[%emt 00:00:57]}
33. Rg2 {[%clk 00:00:40]} {[%emt 00:00:42]} a5 {[%clk 00:05:10]} {[%emt
00:01:00]} 34. Be2 {[%clk 00:00:47]} {[%emt 00:00:23]} Kf8 {[%clk 00:04:11]}
{[%emt 00:01:29]} 35. Bf3 {[%clk 00:00:48]} {[%emt 00:00:29]} Ke7 {[%clk
00:04:30]} {[%emt 00:00:11]} 36. Rf2 {[%clk 00:00:38]} {[%emt 00:00:39]} h4
{[%clk 00:03:08]} {[%emt 00:01:52]} 37. Rg2 {[%clk 00:00:37]} {[%emt 00:00:31]}
hxg3+ {[%clk 00:03:23]} {[%emt 00:00:15]} 38. Kxg3 {[%clk 00:00:54]} {[%emt
00:00:13]} Kd7 {[%clk 00:01:35]} {[%emt 00:02:19]} 39. Kg4 {[%clk 00:00:51]}
{[%emt 00:00:32]} Re1 {[%clk 00:00:39]} {[%emt 00:01:26]} 40. Be2 {[%clk
00:00:41]} {[%emt 00:00:40]} Bd2 {[%clk 00:00:35]} {[%emt 00:00:35]} 41. Bf3
{[%clk 00:23:45]} {[%emt 00:07:25]} Be3 {[%clk 00:29:45]} {[%emt 00:01:19]} 42.
Rc2 {[%clk 00:20:01]} {[%emt 00:04:15]} Rg1+ {[%clk 00:29:42]} {[%emt
00:00:33]} 43. Rg2 {[%clk 00:20:19]} {[%emt 00:00:12]} Rc1 {[%clk 00:29:26]}
{[%emt 00:00:46]} 44. Kg5 {[%clk 00:18:04]} {[%emt 00:02:44]} Rf1 {[%clk
00:27:37]} {[%emt 00:02:20]} 45. Kg4 {[%clk 00:18:27]} {[%emt 00:00:07]} Kc6
{[%clk 00:27:36]} {[%emt 00:00:31]} 46. Rc2+ {[%clk 00:17:02]} {[%emt
00:01:56]} Kb6 {[%clk 00:27:52]} {[%emt 00:00:13]} 47. Kg3 {[%clk 00:12:32]}
{[%emt 00:05:00]} Rg1+ {[%clk 00:25:20]} {[%emt 00:03:01]} 48. Kh2 {[%clk
00:12:16]} {[%emt 00:00:47]} g5 {[%clk 00:14:59]} {[%emt 00:10:51]} 49. f5
{[%clk 00:09:29]} {[%emt 00:03:17]} Re1 {[%clk 00:13:38]} {[%emt 00:01:50]} 50.
fxe6 {[%clk 00:08:43]} {[%emt 00:01:16]} fxe6 {[%clk 00:14:07]} 51. Bg4 {[%clk
00:06:13]} {[%emt 00:03:00]} Bf4+ {[%clk 00:14:07]} {[%emt 00:00:30]} 52. Kg2
{[%clk 00:06:37]} {[%emt 00:00:06]} Re3 {[%clk 00:14:12]} {[%emt 00:00:25]} 53.
Bxe6 {[%clk 00:03:58]} {[%emt 00:03:10]} Rxd3 {[%clk 00:14:21]} {[%emt
00:00:21]} 54. Bxd5 {[%clk 00:01:20]} {[%emt 00:03:07]} Rg3+ {[%clk 00:14:41]}
{[%emt 00:00:09]} 55. Kf2 {[%clk 00:01:05]} {[%emt 00:00:46]} d3 {[%clk
00:15:00]} {[%emt 00:00:11]} 56. Rc6+ {[%clk 00:01:28]} {[%emt 00:00:07]} Ka7
{[%clk 00:15:07]} {[%emt 00:00:24]} 57. Rc7+ {[%clk 00:00:57]} {[%emt
00:01:01]} Kb8 {[%clk 00:15:36]} 58. Rd7 {[%clk 00:01:02]} {[%emt 00:00:24]}
Re3 {[%clk 00:11:29]} {[%emt 00:04:37]} 59. Bc4 {[%clk 00:00:52]} {[%emt
00:00:40]} Re2+ {[%clk 00:09:18]} {[%emt 00:02:09]} 1/2-1/2